bitfinex-derivatives/quotes_BTCF0:USTF0_20241217
["timestamp","ask_amount","ask_price","bid_price","bid_amount"]
[1734447195498,0.00011741,107950.0,107940.0,0.629364]
[1734447196613,0.00011741,107950.0,107940.0,0.407119]
[1734447197307,0.00011741,107950.0,107940.0,0.046319]
[1734447198501,0.00011741,107950.0,107940.0,0.407119]
[1734447199313,0.00011741,107950.0,107940.0,0.046319]
[1734447199516,0.00011741,107950.0,107940.0,0.407119]
[1734447199712,0.00011741,107950.0,107940.0,0.046319]
[1734447200023,0.00011741,107950.0,107940.0,0.629364]
[1734447200616,0.00011741,107950.0,107940.0,0.046319]
[1734447200818,0.00011741,107950.0,107940.0,0.407119]
[1734447202516,0.00011741,107950.0,107940.0,0.929364]
[1734447202715,0.225,107990.0,107980.0,0.046302]
[1734447203218,0.271298,107990.0,107970.0,0.407104]
[1734447203407,0.632098,107990.0,107970.0,0.3608]
[1734447203602,0.854343,107990.0,107980.0,9.256e-05]
[1734447204008,0.632098,107990.0,107980.0,9.256e-05]
[1734447205108,0.854343,107990.0,107980.0,9.256e-05]
[1734447205319,0.04631,107970.0,107950.0,0.046313]
[1734447205624,0.046315,107950.0,107930.0,0.046323]
[1734447205914,0.583045,107940.0,107910.0,0.407128]
[1734447206120,0.629371,107930.0,107900.0,0.3608]
[1734447206307,0.6021,107930.0,107920.0,0.046328]
[1734447206507,0.2413,107930.0,107920.0,0.046328]
[1734447206716,0.6021,107930.0,107920.0,0.046328]
[1734447207221,0.648424,107930.0,107920.0,0.046328]
[1734447207520,0.6021,107930.0,107920.0,0.046328]
[1734447207919,0.2413,107930.0,107920.0,0.046328]
[1734447209224,0.00139,107950.0,107930.0,0.046324]
[1734447209421,0.277511,107960.0,107930.0,0.046324]
[1734447209422,0.4466,107970.0,107940.0,0.6294755]
[1734447209720,0.29117,107980.0,107970.0,0.046306]
[1734447210019,0.282259,107980.0,107970.0,0.046306]
[1734447210224,0.046302,107980.0,107960.0,0.407109]
[1734447210423,0.407102,107980.0,107960.0,0.407109]
[1734447210725,0.8657,107990.0,107970.0,0.046306]
[1734447211017,0.8657,107990.0,107960.0,0.046309]
[1734447211225,0.8657,107990.0,107970.0,0.046306]
[1734447211820,0.046302,107980.0,107960.0,0.407108]
[1734447212020,0.407102,107980.0,107960.0,0.046307]
[1734447212214,0.407102,107980.0,107970.0,0.046306]
[1734447212524,0.046302,107980.0,107970.0,0.046306]
[1734447212726,1.1061,107990.0,107970.0,0.046306]
[1734447213025,5.13575228,108000.0,107990.0,0.046298]
[1734447213221,5.13523227,108000.0,107990.0,0.046298]
[1734447214223,5.49603227,108000.0,107990.0,0.046298]
[1734447214428,5.13523227,108000.0,107990.0,0.407098]
[1734447214621,5.13384252,108000.0,107990.0,0.629343]
[1734447214818,5.1350131,108000.0,107990.0,0.046298]
[1734447215023,5.1813071,108000.0,107980.0,0.04641503]
[1734447215325,5.1813071,108000.0,107980.0,0.36091503]
[1734447215326,5.5421071,108000.0,107980.0,0.36091503]
[1734447215522,5.4958131,108000.0,107980.0,0.00011503]
[1734447215717,5.4958131,108000.0,107980.0,0.04641703]
[1734447215718,5.5421071,108000.0,107980.0,0.04641703]
[1734447216226,5.5421071,108000.0,107980.0,0.00011503]
[1734447216422,5.5421071,108000.0,107960.0,0.3816343]
[1734447216423,0.407098,107990.0,107960.0,0.3816343]
[1734447216631,0.269603,107980.0,107960.0,0.4279443]
[1734447217114,0.630403,107980.0,107960.0,0.0671443]
[1734447217318,0.269603,107980.0,107960.0,0.4279443]
[1734447217523,0.046306,107970.0,107960.0,0.4279443]
[1734447217825,0.630404,107980.0,107960.0,0.42803474]
[1734447218020,0.269604,107980.0,107960.0,0.42803474]
[1734447218222,0.269604,107980.0,107960.0,0.06723474]
[1734447218417,0.046306,107970.0,107960.0,0.02092474]
[1734447218620,0.629351,107970.0,107930.0,0.37953149]
[1734447218927,0.8197,107960.0,107940.0,0.046319]
[1734447219229,0.866012,107960.0,107940.0,0.046319]
[1734447219434,0.8197,107960.0,107950.0,0.046315]
[1734447219730,0.4589,107960.0,107950.0,8.339e-05]
[1734447219914,0.505211,107960.0,107950.0,8.339e-05]
[1734447220520,0.866011,107960.0,107950.0,8.339e-05]
[1734447220927,1.388259,107960.0,107930.0,0.03935182]
[1734447221133,0.046319,107940.0,107930.0,0.02062033]
[1734447221318,0.046319,107940.0,107910.0,0.4253839]
[1734447221319,0.407119,107940.0,107910.0,0.4253839]
[1734447221520,0.046327,107930.0,107910.0,0.0645829]
[1734447221719,0.046321,107940.0,107920.0,0.407128]
[1734447222023,0.407121,107940.0,107930.0,7.817e-05]
[1734447222522,0.407121,107940.0,107930.0,0.04640217]
[1734447222722,0.5925,107950.0,107940.0,0.046319]
[1734447222933,0.5925,107950.0,107940.0,0.268564]
[1734447223531,0.3608,107950.0,107940.0,0.046319]
[1734447223833,1.104807,107970.0,107950.0,0.046312]
[1734447224022,0.046311,107960.0,107940.0,0.222245]
[1734447224219,0.046311,107960.0,107940.0,0.046318]
[1734447224417,0.046316,107950.0,107930.0,0.04640017]
[1734447224619,0.046316,107950.0,107930.0,0.31496617]
[1734447224822,0.046316,107950.0,107930.0,0.14022061]
[1734447225032,0.046316,107950.0,107930.0,0.18654161]
[1734447225232,0.046316,107950.0,107930.0,0.14022061]
[1734447225433,0.046316,107950.0,107930.0,0.50102061]
[1734447225628,0.3608,107960.0,107930.0,0.50102061]
[1734447225825,0.407112,107960.0,107940.0,0.04641838]
[1734447226018,0.046315,107950.0,107940.0,0.00010038]
[1734447226330,0.407112,107960.0,107940.0,0.04641838]
[1734447226538,0.407112,107960.0,107940.0,0.00010038]
[1734447226828,0.407115,107950.0,107940.0,0.00010038]
[1734447227022,0.046315,107950.0,107940.0,0.00010038]
[1734447227224,0.407115,107950.0,107940.0,0.00010038]
[1734447227928,0.046315,107950.0,107940.0,0.00010038]
[1734447228324,0.407115,107950.0,107940.0,0.00010038]
[1734447228721,0.046315,107950.0,107940.0,0.00010038]
[1734447228930,0.407115,107950.0,107940.0,0.00010038]
[1734447229325,0.407115,107950.0,107930.0,0.06541818]
[1734447229326,0.92936,107950.0,107930.0,0.01909518]
[1734447229531,0.2411,107940.0,107920.0,0.046327]
[1734447229731,0.046324,107930.0,107910.0,0.3608]
[1734447229933,1.102821,107940.0,107920.0,0.046328]
[1734447230127,0.046324,107930.0,107920.0,0.046328]
[1734447230527,0.046324,107930.0,107920.0,9.725e-05]
[1734447230832,0.407124,107930.0,107920.0,9.725e-05]
[1734447231638,0.407124,107930.0,107920.0,0.04642525]
[1734447232724,0.407124,107930.0,107920.0,9.725e-05]
[1734447234540,0.407124,107930.0,107920.0,0.44186888]
[1734447235428,0.929369,107930.0,107920.0,0.38657576]
[1734447235634,0.407211,107930.0,107920.0,0.38657576]
[1734447235834,0.407211,107930.0,107920.0,9.725e-05]
[1734447235835,0.046411,107930.0,107920.0,9.725e-05]
[1734447236135,0.046411,107930.0,107920.0,0.76562414]
[1734447236329,0.046411,107930.0,107920.0,0.54341833]
[1734447236724,0.046411,107930.0,107920.0,0.98505419]
[1734447237232,0.046411,107930.0,107920.0,0.48806111]
[1734447237433,0.046411,107930.0,107920.0,0.98505876]
[1734447237628,0.046411,107930.0,107920.0,0.98505648]
[1734447237838,0.407211,107930.0,107920.0,0.9387358]
[1734447238133,0.046411,107930.0,107920.0,9.725e-05]
[1734447238334,0.046411,107930.0,107920.0,0.54341833]
[1734447238642,0.046411,107930.0,107920.0,1.09563287]
[1734447238836,0.046316,107950.0,107930.0,0.04632]
[1734447239046,0.3608,107950.0,107940.0,0.49681429]
[1734447239227,0.046319,107950.0,107940.0,0.68481169]
[1734447239540,0.407119,107950.0,107940.0,1.23702623]
[1734447239726,0.407119,107950.0,107940.0,1.38025681]
[1734447239933,0.407119,107950.0,107940.0,0.441618]
[1734447240132,0.407119,107950.0,107940.0,0.828065]
[1734447240330,0.55125384,107950.0,107940.0,0.828065]
[1734447240534,0.55125384,107950.0,107940.0,0.386447]
[1734447240938,0.55125384,107950.0,107940.0,0.82808735]
[1734447240939,0.85125384,107950.0,107940.0,0.82808735]
[1734447241144,0.04632,107940.0,107920.0,1.84455947]
[1734447241337,0.91205884,107930.0,107920.0,0.49691154]
[1734447241542,0.767924,107930.0,107920.0,0.49691154]
[1734447241839,0.767924,107930.0,107920.0,0.04642525]
[1734447242049,0.767924,107930.0,107920.0,9.725e-05]
[1734447242433,0.767924,107930.0,107920.0,0.04642525]
[1734447242831,0.308721,107940.0,107930.0,0.046324]
[1734447243034,0.046317,107950.0,107940.0,0.046319]
[1734447243543,0.046317,107950.0,107940.0,0.59853354]
[1734447243766,0.046317,107950.0,107940.0,0.55221454]
[1734447244047,0.85125184,107950.0,107940.0,0.55221454]
[1734447244241,1.37255184,107950.0,107940.0,0.55221454]
[1734447244545,0.046319,107940.0,107930.0,0.55221454]
[1734447244841,0.407119,107940.0,107930.0,0.55221454]
[1734447245046,0.407119,107940.0,107930.0,0.59853854]
[1734447245239,0.407119,107940.0,107920.0,0.55221454]
[1734447245441,0.407119,107940.0,107930.0,0.046324]
[1734447245643,0.407119,107940.0,107920.0,0.55221454]
[1734447245939,0.3608,107940.0,107920.0,0.59854054]
[1734447246138,0.046322,107940.0,107930.0,0.04639954]
[1734447246333,0.407118,107950.0,107940.0,0.046319]
[1734447246540,0.046319,107940.0,107930.0,0.04639854]
[1734447246848,0.36545391,107940.0,107930.0,0.00875214]
[1734447247049,0.912619,107940.0,107930.0,0.56192368]
[1734447247247,0.912619,107940.0,107930.0,0.55324708]
[1734447249245,0.3608,107940.0,107930.0,0.74370592]
[1734447249552,0.407116,107950.0,107940.0,0.046319]
[1734447249749,0.046319,107940.0,107930.0,0.04639854]
[1734447250252,0.407119,107940.0,107930.0,7.554e-05]
[1734447250438,0.909519,107940.0,107930.0,0.56249138]
[1734447250636,1.05365384,107940.0,107930.0,0.00875214]
[1734447250845,0.909519,107940.0,107930.0,7.554e-05]
[1734447251340,0.548719,107940.0,107930.0,7.554e-05]
[1734447251653,0.296519,107940.0,107930.0,0.04639954]
[1734447251836,0.657319,107940.0,107930.0,7.554e-05]
[1734447252239,1.10145384,107940.0,107930.0,7.554e-05]
[1734447252436,1.36475384,107940.0,107930.0,0.55395074]
[1734447252742,1.36475384,107940.0,107930.0,0.00875674]
[1734447252957,1.36475384,107940.0,107930.0,0.56263408]
[1734447253136,0.046328,107920.0,107910.0,0.55466811]
[1734447253338,0.34346526,107920.0,107910.0,0.17684731]
[1734447253547,0.78554174,107920.0,107900.0,0.78613778]
[1734447253752,0.55126684,107910.0,107890.0,0.2522]
[1734447253949,0.407136,107900.0,107890.0,0.2522]
[1734447254247,0.00139027,107950.0,107910.0,0.046332]
[1734447254452,0.24549027,107950.0,107940.0,0.046319]
[1734447254636,0.046319,107940.0,107930.0,0.307523]
[1734447254841,0.046319,107940.0,107930.0,0.66839623]
[1734447255238,0.046319,107940.0,107930.0,0.26127323]
[1734447255850,0.046319,107940.0,107930.0,0.30759723]
[1734447256152,0.29180627,107950.0,107940.0,0.046319]
[1734447256349,0.00139027,107950.0,107940.0,0.407119]
[1734447256736,0.04770527,107950.0,107940.0,0.407119]
[1734447257048,0.00139027,107950.0,107930.0,0.66839523]
[1734447257246,0.046319,107940.0,107930.0,0.62207323]
[1734447257448,0.046319,107940.0,107930.0,0.26127323]
[1734447258148,0.55125384,107940.0,107930.0,7.323e-05]
[1734447258342,0.407119,107940.0,107930.0,7.323e-05]
[1734447258647,0.046319,107940.0,107930.0,0.04639723]
[1734447258846,0.66970827,107950.0,107930.0,0.04639723]
[1734447259043,0.046319,107940.0,107930.0,0.04639723]
[1734447259248,0.046319,107940.0,107930.0,0.40719723]
[1734447259749,0.046319,107940.0,107930.0,0.04639723]
[1734447260144,0.046319,107940.0,107930.0,7.323e-05]
[1734447260552,0.85125384,107940.0,107930.0,7.323e-05]
[1734447260755,0.046328,107920.0,107910.0,0.2646]
[1734447261056,0.046332,107910.0,107900.0,0.3608]
[1734447261246,0.58615384,107940.0,107910.0,0.046331]
[1734447261247,0.2621,107940.0,107910.0,0.046331]
[1734447261449,0.046321,107940.0,107920.0,0.407126]
[1734447261655,0.046321,107940.0,107930.0,0.24960897]
[1734447261842,0.55125584,107940.0,107930.0,0.00010897]
[1734447262551,0.85125584,107940.0,107930.0,0.00010897]
[1734447262755,0.046328,107920.0,107910.0,0.2495]
[1734447262947,0.407128,107920.0,107910.0,0.2495]
[1734447263143,0.046332,107910.0,107900.0,0.3793527]
[1734447263458,0.40136726,107920.0,107900.0,0.2663527]
[1734447263758,0.40136726,107920.0,107910.0,6.992e-05]
[1734447264955,0.40136726,107920.0,107900.0,0.49375139]
[1734447265152,0.046336,107900.0,107890.0,0.28232184]
[1734447265353,0.046336,107900.0,107890.0,0.64312184]
[1734447265748,0.046336,107900.0,107890.0,0.01842184]
[1734447265952,0.407136,107900.0,107890.0,6.93e-05]
[1734447266367,0.34345856,107900.0,107890.0,6.93e-05]
[1734447266558,0.38979456,107900.0,107890.0,6.93e-05]
[1734447268164,0.38979456,107900.0,107870.0,0.325449]
[1734447268465,0.046345,107880.0,107870.0,0.325449]
[1734447268963,0.55127984,107880.0,107860.0,0.3105092]
[1734447269263,0.407149,107870.0,107860.0,0.3105092]
[1734447269559,0.407149,107870.0,107860.0,0.31059184]
[1734447270060,0.046346,107880.0,107860.0,0.71774284]
[1734447270248,0.092694,107880.0,107860.0,0.44535245]
[1734447270562,0.046349,107870.0,107860.0,0.39060145]
[1734447270961,0.046349,107870.0,107860.0,0.02980145]
[1734447272064,0.046349,107870.0,107860.0,0.07615545]
[1734447272364,0.40722104,107890.0,107860.0,0.43695545]
[1734447272556,0.046346,107880.0,107860.0,0.58109029]
[1734447272757,0.40722304,107890.0,107870.0,0.407149]
[1734447273065,0.40722304,107890.0,107880.0,0.2745]
[1734447273366,0.04642304,107890.0,107880.0,0.2745]
[1734447274461,8.004e-05,107890.0,107880.0,0.6353]
[1734447274657,0.36219062,107910.0,107880.0,0.6353]
[1734447274658,0.00139062,107910.0,107880.0,1.12577984]
[1734447274864,0.3608,107930.0,107900.0,0.55127084]
[1734447275050,0.58031915,107950.0,107920.0,0.407128]
[1734447275254,0.046321,107940.0,107920.0,0.407128]
[1734447275450,0.046324,107930.0,107920.0,0.680428]
[1734447275654,0.046322,107940.0,107920.0,0.68051139]
[1734447275864,0.046322,107940.0,107920.0,0.31971139]
[1734447276058,0.046324,107930.0,107920.0,0.31971139]
[1734447276363,0.046324,107930.0,107920.0,0.27338439]
[1734447276663,0.046321,107940.0,107920.0,0.31971139]
[1734447277061,0.046321,107940.0,107920.0,0.68051139]
[1734447277256,0.046321,107940.0,107920.0,0.60211139]
[1734447277450,0.00139031,107950.0,107920.0,0.96291139]
[1734447277659,0.04770631,107950.0,107930.0,0.046322]
[1734447278066,0.046319,107940.0,107930.0,0.046322]
[1734447278250,0.046319,107940.0,107920.0,0.91658439]
[1734447278451,0.046319,107940.0,107920.0,0.98003037]
[1734447279062,0.046319,107940.0,107920.0,0.98002937]
[1734447279462,0.00139031,107950.0,107930.0,0.407124]
[1734447279664,0.04770631,107950.0,107930.0,0.407124]
[1734447280067,0.04770631,107950.0,107930.0,0.3608]
[1734447280258,0.04770731,107950.0,107930.0,0.407122]
[1734447280567,0.04770731,107950.0,107930.0,0.046322]
[1734447281565,0.45482531,107950.0,107930.0,0.046322]
[1734447281862,0.04632,107940.0,107920.0,0.98002937]
[1734447282071,0.046321,107940.0,107920.0,0.61922937]
[1734447282369,0.04770731,107950.0,107930.0,0.3608]
[1734447282565,0.04770731,107950.0,107930.0,0.046321]
[1734447282768,0.046319,107940.0,107930.0,0.046321]
[1734447282962,0.407119,107940.0,107920.0,0.98003037]
[1734447283563,0.36219031,107950.0,107920.0,0.93370437]
[1734447283774,0.04770731,107950.0,107930.0,0.407121]
[1734447284162,0.04770731,107950.0,107930.0,0.046321]
[1734447284863,0.04770731,107950.0,107930.0,0.407121]
[1734447285167,0.04770731,107950.0,107940.0,0.046319]
[1734447285468,0.00139031,107950.0,107940.0,0.55125384]
[1734447285970,0.00139031,107950.0,107940.0,0.2909]
[1734447286165,0.04770531,107950.0,107940.0,0.2909]
[1734447286370,0.00139031,107950.0,107940.0,0.337219]
[1734447286676,0.00139031,107950.0,107940.0,0.33604777]
[1734447287063,0.00139031,107950.0,107940.0,0.84098261]
[1734447287364,0.0008243,107960.0,107950.0,0.046315]
[1734447287560,0.0008243,107960.0,107950.0,0.979615]
[1734447288167,0.2687,107990.0,107950.0,1.42374984]
[1734447288370,5.18069653,108000.0,107980.0,0.4071]
[1734447288566,5.13384252,108000.0,107990.0,0.407098]
[1734447288768,5.03300253,108000.0,107990.0,0.55123284]
[1734447288971,5.00972093,108000.0,107990.0,0.85123284]
[1734447289170,4.97709093,108000.0,107990.0,0.85134592]
[1734447289769,4.97209093,108000.0,107990.0,0.85134592]
[1734447289969,4.97209093,108000.0,107990.0,1.13704592]
[1734447290365,4.74069207,108000.0,107990.0,0.83704592]
[1734447290573,4.74069207,108000.0,107990.0,1.13704592]
[1734447290962,4.74069207,108000.0,107990.0,0.69291108]
[1734447291568,4.74069207,108000.0,107990.0,0.64661308]
[1734447292183,4.78698607,108000.0,107990.0,0.00011308]
[1734447292376,4.78698607,108000.0,107990.0,0.36091308]
[1734447293076,4.78698607,108000.0,107990.0,0.00011308]
[1734447293482,5.14778607,108000.0,107990.0,0.00011308]
[1734447294068,5.29192091,108000.0,107990.0,0.00011308]
[1734447295182,5.29192091,108000.0,107960.0,0.6574]
[1734447295183,0.046306,107980.0,107960.0,0.6574]
[1734447295479,0.046306,107980.0,107960.0,0.70371]
[1734447295779,0.407106,107980.0,107960.0,0.34291]
[1734447295975,0.046306,107980.0,107960.0,0.34291]
[1734447296177,0.046306,107980.0,107970.0,0.00010057]
[1734447296482,0.47813384,107990.0,107970.0,0.04640657]
[1734447296784,0.83893384,107990.0,107970.0,0.40720657]
[1734447297079,0.046299,107990.0,107970.0,0.40720657]
[1734447297281,4.78698607,108000.0,107980.0,0.407101]
[1734447297580,5.14778607,108000.0,107980.0,0.407101]
[1734447297774,0.046299,107990.0,107970.0,0.04640657]
[1734447297973,0.046299,107990.0,107970.0,0.04640457]
[1734447298181,0.046299,107990.0,107970.0,0.40720457]
[1734447298378,0.046299,107990.0,107970.0,0.04640457]
[1734447298682,0.046294,107990.0,107970.0,0.06521667]
[1734447298876,0.046294,107990.0,107970.0,0.42601667]
[1734447299078,0.046294,107990.0,107970.0,0.06521667]
[1734447299284,0.046296,107990.0,107970.0,0.37971667]
[1734447299473,0.046296,107990.0,107980.0,0.3608]
[1734447299674,5.10149207,108000.0,107980.0,0.046298]
[1734447299675,5.14778407,108000.0,107980.0,0.046298]
[1734447299869,5.10149207,108000.0,107980.0,0.3608]
[1734447300081,0.046295,107990.0,107980.0,0.3608]
[1734447300276,5.14778307,108000.0,107980.0,0.3608]
[1734447300484,5.14778307,108000.0,107990.0,0.046294]
[1734447300485,4.74069207,108000.0,107990.0,0.046294]
[1734447300675,4.78698107,108000.0,107980.0,0.407095]
[1734447301684,0.55122984,107990.0,107970.0,0.01891667]
[1734447301887,4.78758308,108000.0,107970.0,0.37971667]
[1734447302184,4.78698307,108000.0,107980.0,0.046297]
[1734447302383,4.74069207,108000.0,107980.0,0.453393]
[1734447302573,4.74069207,108000.0,107980.0,0.407096]
[1734447302774,4.78698307,108000.0,107980.0,0.407096]
[1734447302983,5.10149207,108000.0,107980.0,0.3608]
[1734447303281,0.046298,107980.0,107970.0,0.00010057]
[1734447303485,0.407098,107980.0,107970.0,0.00010057]
[1734447303681,0.964298,107980.0,107970.0,0.00010057]
[1734447303888,0.407095,107990.0,107970.0,0.40720257]
[1734447304076,0.092592,107990.0,107970.0,0.36090057]
[1734447304378,0.046298,107980.0,107970.0,0.36090057]
[1734447304587,0.334398,107980.0,107970.0,0.36090057]
[1734447304779,0.2881,107980.0,107970.0,0.40720257]
[1734447304975,0.046295,107990.0,107970.0,0.40720257]
[1734447305283,0.046298,107990.0,107970.0,0.36090057]
[1734447305477,0.3608,107990.0,107970.0,0.00010057]
[1734447305782,0.046298,107980.0,107970.0,0.00010057]
[1734447306082,0.3608,107990.0,107970.0,0.04640257]
[1734447306283,5.07564508,108000.0,107980.0,0.046298]
[1734447306479,5.07508507,108000.0,107980.0,0.046298]
[1734447306679,5.07508507,108000.0,107980.0,0.407096]
[1734447307185,4.74069207,108000.0,107990.0,0.407094]
[1734447307386,4.74069207,108000.0,107990.0,0.046294]
[1734447307580,4.78698107,108000.0,107990.0,0.046294]
[1734447307982,4.78698107,108000.0,107980.0,0.407096]
[1734447308187,0.046294,107990.0,107980.0,0.3608]
[1734447308884,0.046294,107990.0,107970.0,0.28070057]
[1734447309088,0.55123284,107980.0,107970.0,0.00010057]
[1734447309392,0.699998,107980.0,107970.0,0.00010057]
[1734447309980,0.84413284,107980.0,107970.0,0.00010057]
[1734447310284,0.699998,107980.0,107970.0,0.00010057]
[1734447311082,0.84413284,107980.0,107970.0,0.00010057]
[1734447311478,0.699998,107980.0,107970.0,0.00010057]
[1734447311998,0.992996,107990.0,107970.0,0.40720257]
[1734447312287,0.407096,107990.0,107970.0,0.55133441]
[1734447312497,0.407096,107990.0,107980.0,0.046298]
[1734447312791,0.407096,107990.0,107970.0,0.69609957]
[1734447313181,0.046296,107990.0,107970.0,0.74239957]
[1734447313888,0.046296,107990.0,107980.0,0.3608]
[1734447314292,0.046296,107990.0,107980.0,0.407098]
[1734447315291,4.71419231,108000.0,107990.0,0.046294]
[1734447315487,4.71001866,108000.0,107990.0,0.407094]
[1734447315994,5.07081866,108000.0,107970.0,0.65847655]
[1734447316202,0.046295,107990.0,107970.0,0.69610257]
[1734447316380,0.26539103,107990.0,107970.0,0.69610257]
[1734447316581,0.046298,107980.0,107970.0,0.70477855]
[1734447316785,0.55959103,107990.0,107970.0,0.34397855]
[1734447316988,0.55959103,107990.0,107970.0,0.70477855]
[1734447316989,0.60588703,107990.0,107970.0,0.70477855]
[1734447317192,0.60588703,107990.0,107970.0,0.69610257]
[1734447317388,0.60588703,107990.0,107980.0,0.3608]
[1734447317594,0.60588703,107990.0,107970.0,0.69609957]
[1734447318097,0.60588703,107990.0,107970.0,0.33529957]
[1734447318098,0.046298,107980.0,107970.0,0.33529957]
[1734447318297,0.046298,107980.0,107970.0,0.71423471]
[1734447318810,0.19043284,107980.0,107970.0,0.00010057]
[1734447319001,0.407098,107980.0,107970.0,0.00010057]
[1734447319387,0.046298,107980.0,107970.0,0.04640257]
[1734447319589,0.046298,107980.0,107970.0,0.40720257]
[1734447319792,0.60588603,107990.0,107970.0,0.40720257]
[1734447320093,0.046298,107980.0,107970.0,0.36090057]
[1734447320291,0.046298,107980.0,107970.0,0.00010057]
[1734447320494,0.92039103,107990.0,107970.0,0.00010057]
[1734447320796,0.96668603,107990.0,107970.0,0.40720157]
[1734447320997,0.60588603,107990.0,107970.0,0.40720157]
[1734447321501,0.60588603,107990.0,107970.0,0.04640157]
[1734447321700,0.046298,107980.0,107970.0,0.04640157]
[1734447321999,0.046298,107980.0,107970.0,0.00010057]
[1734447323603,0.55959103,107990.0,107980.0,0.046298]
[1734447323604,0.26539103,107990.0,107980.0,0.046298]
[1734447323802,4.75682967,108000.0,107980.0,0.14230958]
[1734447324097,4.75630966,108000.0,107980.0,0.407098]
[1734447324303,4.75630966,108000.0,107980.0,0.046298]
[1734447324601,4.75630966,108000.0,107980.0,0.407098]
[1734447324796,4.75630966,108000.0,107980.0,0.41577398]
[1734447325194,4.75630966,108000.0,107970.0,0.36090057]
[1734447325195,0.14230858,107990.0,107970.0,0.36090057]
[1734447325401,0.14230858,107990.0,107970.0,0.00010057]
[1734447325402,0.046298,107980.0,107970.0,0.00010057]
[1734447325599,0.50310958,107980.0,107970.0,0.00010057]
[1734447325803,0.77320958,107980.0,107970.0,0.00010057]
[1734447325998,0.69240958,107980.0,107970.0,0.00010057]
[1734447326391,0.596398,107980.0,107970.0,0.00010057]
[1734447326590,0.957198,107980.0,107970.0,0.00010057]
[1734447326909,0.046302,107970.0,107960.0,0.01562002]
[1734447327094,0.14231358,107970.0,107960.0,0.01562002]
[1734447327293,0.046302,107970.0,107960.0,0.01562002]
[1734447327501,0.046306,107960.0,107950.0,0.01856803]
[1734447327804,0.046315,107940.0,107930.0,0.407119]
[1734447328104,0.14232658,107940.0,107930.0,0.36086778]
[1734447328302,0.046315,107940.0,107930.0,0.36086778]
[1734447328601,0.14232658,107940.0,107930.0,0.01551041]
[1734447329105,0.50312658,107940.0,107930.0,0.01551041]
[1734447330004,0.14241582,107940.0,107930.0,0.01551041]
[1734447330305,0.407115,107940.0,107930.0,0.01551041]
[1734447331404,0.5512571,107940.0,107910.0,0.0186891]
[1734447331610,0.04633,107910.0,107900.0,0.407131]
[1734447331796,0.3608,107910.0,107890.0,0.407136]
[1734447332103,0.046337,107890.0,107880.0,0.06526972]
[1734447332305,0.046341,107880.0,107860.0,0.36947598]
[1734447332497,0.046345,107870.0,107860.0,0.00867598]
[1734447332698,0.046345,107870.0,107860.0,0.00875718]
[1734447333008,0.407145,107870.0,107860.0,8.12e-05]
[1734447333694,0.639,107880.0,107860.0,8.12e-05]
[1734447333893,0.685341,107880.0,107860.0,0.0464282]
[1734447334300,0.046345,107870.0,107850.0,0.1904941]
[1734447334511,0.046345,107870.0,107850.0,0.046352]
[1734447335101,0.046345,107870.0,107850.0,0.407152]
[1734447335406,0.046345,107870.0,107860.0,6.965e-05]
[1734447335801,0.407145,107870.0,107860.0,6.965e-05]
[1734447336712,0.046345,107870.0,107860.0,6.965e-05]
[1734447337703,0.407142,107880.0,107860.0,0.04641865]
[1734447338714,0.68922502,107900.0,107880.0,0.04634]
[1734447339011,0.68922502,107900.0,107870.0,0.8284861]
[1734447339397,0.32842502,107900.0,107870.0,0.8284861]
[1734447339604,0.046337,107890.0,107870.0,0.8284861]
[1734447340109,0.00139102,107900.0,107880.0,0.3608]
[1734447340608,0.04772402,107900.0,107880.0,0.3608]
[1734447341204,0.046341,107880.0,107870.0,0.2772]
[1734447341805,0.046341,107880.0,107870.0,0.29131291]
[1734447342406,0.36219102,107900.0,107870.0,0.84259901]
[1734447342407,0.046337,107890.0,107870.0,0.84259901]
[1734447343005,0.046337,107890.0,107870.0,0.69845691]
[1734447343202,0.046337,107890.0,107870.0,0.65211291]
[1734447343506,0.36219102,107900.0,107870.0,0.84259901]
[1734447343712,0.04772502,107900.0,107870.0,0.84259901]
[1734447343912,0.00139102,107900.0,107890.0,0.1904791]
[1734447344113,0.00139102,107900.0,107890.0,0.407137]
[1734447344415,0.00139102,107900.0,107890.0,0.3608]
[1734447344602,0.04772402,107900.0,107880.0,0.40714]
[1734447345207,0.00139102,107900.0,107880.0,0.3608]
[1734447345413,0.00139102,107900.0,107890.0,0.55138508]
[1734447345715,0.00139102,107900.0,107890.0,0.40724298]
[1734447345912,0.046316,107940.0,107890.0,0.55138508]
[1734447346099,0.092635,107940.0,107920.0,0.3608]
[1734447346304,0.046319,107930.0,107920.0,0.3608]
[1734447346700,0.046327,107920.0,107900.0,0.5689]
[1734447346910,0.407119,107930.0,107900.0,0.5689]
[1734447347112,0.046327,107920.0,107900.0,0.5689]
[1734447347310,0.407119,107930.0,107900.0,0.5689]
[1734447347510,0.046327,107920.0,107900.0,0.5689]
[1734447347716,0.046327,107920.0,107900.0,0.9297]
[1734447347909,0.046324,107920.0,107900.0,1.0738421]
[1734447348119,0.046324,107920.0,107900.0,0.976031]
[1734447349021,0.046326,107920.0,107900.0,0.97603]
[1734447349211,0.046316,107940.0,107920.0,0.046324]
[1734447349515,0.331813,107950.0,107920.0,0.5049421]
[1734447349718,0.046315,107940.0,107920.0,0.5512641]
[1734447350116,0.331812,107950.0,107930.0,0.046319]
[1734447350312,0.046312,107950.0,107940.0,7.113e-05]
[1734447351616,0.407112,107950.0,107940.0,7.113e-05]
[1734447351804,0.046312,107950.0,107940.0,7.113e-05]
[1734447353313,0.00010442,107960.0,107940.0,7.113e-05]
[1734447353509,0.04641342,107960.0,107940.0,0.40718513]
[1734447353710,0.00010442,107960.0,107940.0,0.50501323]
[1734447354010,0.00010442,107960.0,107950.0,0.046311]
[1734447354212,0.04641042,107960.0,107940.0,0.4201605]
[1734447354715,0.04641042,107960.0,107940.0,0.3738465]
[1734447354716,0.00010442,107960.0,107940.0,0.3738465]
[1734447355016,0.00139018,107970.0,107960.0,0.046306]
[1734447355312,7.02897519,108000.0,107980.0,0.046298]
[1734447355517,7.07526719,108000.0,107980.0,0.046298]
[1734447355711,0.046294,107990.0,107970.0,0.407101]
[1734447356016,7.53391729,108000.0,107970.0,0.3608]
[1734447356218,0.046298,107980.0,107960.0,0.987306]
[1734447356513,0.046298,107980.0,107960.0,0.6497]
[1734447356719,0.046302,107970.0,107960.0,0.6497]
[1734447356924,0.5049421,107990.0,107960.0,0.6497]